[Event "2nd Irena Warakomska Memorial-B"]
[Site "Suwalki"]
[Date "2018.08.01"]
[Round "1"]
[White "Samborski, Henryk"]
[Black "Flis, Pawel"]
[Result "1-0"]
[ECO "E67"]
[WhiteElo "2098"]
[BlackElo "1905"]
[Annotator "NA"]
[PlyCount "87"]
[EventDate "2018.08.01"]
[EventType "swiss"]
[EventCountry "POL"]
[SourceTitle "playchess.com"]
[Source "ChessBase"]
[SourceQuality "1"]
[TimeControl "40/5400+30:1800+30"]

1. Nf3 {[%emt 0:00:00]} Nf6 {[%emt 0:00:08]} 2. g3 {[%emt 0:00:00]} g6 {[%emt 0:00:06]} 3. Bg2 {[%emt 0:00:00]} Bg7 {[%emt 0:00:04]} 4. O-O {[%emt 0:00:09]} O-O {[%emt 0:00:03]} 5. c4 {[%emt 0:00:11]} d6 {[%emt 0:00:16]} 6. d4 {[%emt 0:01:34]} Nbd7 {[%emt 0:00:58]} 7. Nc3 {[%emt 0:01:07]} e5 {[%emt 0:00:15]} 8. h3 {[%emt 0:03:50]} c6 {[%emt 0:00:58]} 9. Be3 e4 {[%emt 0:07:15]} 10. Ne1 {[%emt 0:03:01]} Re8 {[%emt 0:01:58]} 11. Rc1 {[%emt 0:09:47]} Nf8 {[%emt 0:03:36]} 12. Qd2 {[%emt 0:09:26]} h5 {[%emt 0:08:15]} 13. b4 {[%emt 0:09:18]} Bf5 {[%emt 0:08:29]} 14. Nc2 {[%emt 0:03:46]} Qd7 {[%emt 0:01:25]} 15. Kh2 {[%emt 0:00:18]} b6 {[%emt 0:19:06]} 16. Bh6 {[%emt 0:08:44]} Bh8 {[%emt 0:04:18]} 17. Ne3 {[%emt 0:01:23]} Kh7 {[%emt 0:01:02]} 18. Nxf5 {[%emt 0:03:55]} Qxf5 {[%emt 0:00:41]} 19. f3 {[%emt 0:03:33]} exf3 {[%emt 0:07:30]} 20. Bxf3 {[%emt 0:04:13]} Qd7 {[%emt 0:03:50]} 21. b5 {[%emt 0:00:14]} cxb5 {[%emt 0:06:45]} 22. Bxa8 {[%emt 0:00:43]} Rxa8 {[%emt 0:00:09]} 23. cxb5 {[%emt 0:03:38]} Ne6 {[%emt 0:01:47]} 24. Be3 {[%emt 0:01:28]} d5 {[%emt 0:04:32]} 25. Qd3 {[%emt 0:07:21]} h4 {[%emt 0:01:51]} 26. g4 {[%emt 0:06:17]} Qd6+ {[%emt 0:04:17]} 27. Kh1 {[%emt 0:00:05]} Kg8 {[%emt 0:04:41]} 28. Rf3 {[%emt 0:03:40]} Re8 {[%emt 0:01:42]} 29. Rcf1 {[%emt 0:00:58]} Ne4 {[%emt 0:03:49]} 30. Nxe4 {[%emt 0:00:23]} dxe4 {[%emt 0:00:02]} 31. Qxe4 {[%emt 0:00:10]} Nc7 32. Qc6 {[%emt 0:02:59]} Qd5 {[%emt 0:02:09]} 33. Bf4 {[%emt 0:02:10]} Qxc6 {[%emt 0:01:56]} 34. bxc6 {[%emt 0:00:03]} Nd5 {[%emt 0:00:02]} 35. Be5 {[%emt 0:01:09]} Bxe5 {[%emt 0:00:55]} 36. dxe5 {[%emt 0:00:02]} Re7 {[%emt 0:00:35]} 37. a3 {[%emt 0:03:02]} Nc7 {[%emt 0:01:09]} 38. Rd1 {[%emt 0:00:44]} Kf8 {[%emt 0:00:58]} 39. Rd8+ {[%emt 0:00:39]} Ne8 {[%emt 0:00:48]} 40. Rc3 {[%emt 0:00:00]} Rc7 {[%emt 0:00:00]} 41. Rd7 {[%emt 0:02:13]} a6 {[%emt 0:02:49]} 42. Kg2 {[%emt 0:00:57]} b5 {[%emt 0:00:22]} 43. Rf3 {[%emt 0:00:32]} Rxc6 {[%emt 0:03:58]} 44. Rdxf7+ {[%emt 0:00:05]} 1-0

[Event "2nd Irena Warakomska Memorial-B"]
[Site "Suwalki"]
[Date "2018.08.01"]
[Round "1"]
[White "Kindler, Przemyslaw"]
[Black "Zolkiewski, Jakub"]
[Result "1-0"]
[ECO "C00"]
[WhiteElo "2086"]
[BlackElo "1894"]
[Annotator "NA"]
[PlyCount "56"]
[EventDate "2018.08.01"]
[EventType "swiss"]
[EventCountry "POL"]
[SourceTitle "playchess.com"]
[Source "ChessBase"]
[SourceQuality "1"]
[TimeControl "40/5400+30:1800+30"]

1. e4 {[%emt 0:00:00]} e6 {[%emt 0:00:57]} 2. d3 {[%emt 0:00:00]} d5 {[%emt 0:01:33]} 3. Nd2 {[%emt 0:00:00]} Nf6 {[%emt 0:01:04]} 4. Ngf3 {[%emt 0:00:00]} c5 {[%emt 0:03:38]} 5. g3 {[%emt 0:04:50]} b6 6. c3 {[%emt 0:02:23]} dxe4 {[%emt 0:15:22]} 7. dxe4 {[%emt 0:00:05]} Bb7 {[%emt 0:00:05]} 8. Qc2 {[%emt 0:00:04]} Nc6 {[%emt 0:00:42]} 9. Bg2 {[%emt 0:00:17]} Be7 {[%emt 0:10:34]} 10. O-O {[%emt 0:01:02]} Qc7 {[%emt 0:03:13]} 11. Re1 {[%emt 0:00:34]} O-O {[%emt 0:12:32]} 12. Nc4 {[%emt 0:00:50]} Nd7 {[%emt 0:09:04]} 13. Bf4 {[%emt 0:01:04]} e5 {[%emt 0:00:40]} 14. Bd2 {[%emt 0:00:04]} Rfd8 {[%emt 0:07:34]} 15. Ne3 {[%emt 0:00:44]} Nf6 {[%emt 0:00:15]} 16. Nf5 {[%emt 0:00:12]} Ba6 {[%emt 0:07:06]} 17. N3h4 {[%emt 0:05:22]} Ne8 {[%emt 0:07:46]} 18. Nxe7+ {[%emt 0:01:39]} Nxe7 {[%emt 0:00:26]} 19. f4 {[%emt 0:03:42]} Nc6 {[%emt 0:05:39]} 20. Nf5 {[%emt 0:04:14]} Nd6 {[%emt 0:02:13]} 21. Rad1 {[%emt 0:05:23]} Nxf5 {[%emt 0:04:52]} 22. exf5 {[%emt 0:00:01]} Bd3 {[%emt 0:00:20]} 23. Qa4 {[%emt 0:00:18]} b5 {[%emt 0:01:04]} 24. Qa3 {[%emt 0:01:23]} Bxf5 {[%emt 0:04:49]} 25. Qxc5 {[%emt 0:00:29]} Rac8 {[%emt 0:00:27]} 26. Be3 {[%emt 0:00:07]} Rxd1 {[%emt 0:00:34]} 27. Rxd1 {[%emt 0:00:05]} a6 28. Qxc6 {[%emt 0:00:06]} Bc2 1-0

[Event "2nd Irena Warakomska Memorial-B"]
[Site "Suwalki"]
[Date "2018.08.01"]
[Round "1"]
[White "Kumanovskiy, Evgeny"]
[Black "Cap, Piotr"]
[Result "1/2-1/2"]
[ECO "A46"]
[WhiteElo "2084"]
[BlackElo "1877"]
[Annotator "NA RC"]
[PlyCount "98"]
[EventDate "2018.08.01"]
[EventType "swiss"]
[EventCountry "POL"]
[SourceTitle "playchess.com"]
[Source "ChessBase"]
[SourceQuality "1"]
[TimeControl "40/5400+30:1800+30"]

1. d4 {[%emt 0:00:00]} Nf6 {[%emt 0:00:16]} 2. Nf3 {[%emt 0:00:14]} d6 {[%emt 0:00:23]} 3. Bf4 {[%emt 0:00:22]} g6 {[%emt 0:01:12]} 4. e3 {[%emt 0:00:42]} Bg7 {[%emt 0:00:30]} 5. h3 {[%emt 0:00:49]} O-O {[%emt 0:00:30]} 6. Be2 {[%emt 0:00:48]} b6 {[%emt 0:05:07]} 7. O-O {[%emt 0:02:05]} c5 {[%emt 0:00:41]} 8. c3 Bb7 {[%emt 0:03:02]} 9. Nbd2 {[%emt 0:06:56]} Re8 {[%emt 0:02:27]} 10. a4 {[%emt 0:04:57]} Nc6 11. Nc4 {[%emt 0:20:58]} d5 {[%emt 0:24:28]} 12. Nce5 {[%emt 0:01:11]} Nxe5 13. Nxe5 {[%emt 0:03:06]} c4 {[%emt 0:09:47]} 14. b3 {[%emt 0:04:27]} cxb3 {[%emt 0:01:13]} 15. Bb5 {[%emt 0:01:13]} Rf8 {[%emt 0:00:42]} 16. Qxb3 {[%emt 0:03:04]} Ne4 {[%emt 0:02:49]} 17. Ra2 {[%emt 0:05:10]} Rc8 {[%emt 0:02:13]} 18. Rc2 {[%emt 0:03:25]} Nd6 {[%emt 0:03:59]} 19. Be2 {[%emt 0:10:51]} Bxe5 {[%emt 0:06:13]} 20. Bxe5 {[%emt 0:00:28]} Nc4 {[%emt 0:00:48]} 21. Bxc4 {[%emt 0:03:39]} Rxc4 22. a5 {[%emt 0:06:17]} Bc6 {[%emt 0:04:41]} 23. Ra1 {[%emt 0:01:55]} bxa5 {[%emt 0:01:22]} 24. Qa3 {[%emt 0:03:10]} a4 {[%emt 0:02:45]} 25. Rb1 {[%emt 0:00:46]} Qd7 26. Rcb2 a6 {[%emt 0:04:56]} 27. Rb4 {[%emt 0:04:46]} Rxb4 28. Qxb4 {[%emt 0:03:28]} Bb5 {[%emt 0:04:16]} 29. e4 {[%emt 0:01:49]} f6 {[%emt 0:03:33]} 30. Bg3 {[%emt 0:00:18]} Bd3 {[%emt 0:02:19]} 31. Ra1 {[%emt 0:00:32]} Bxe4 {[%emt 0:01:16]} 32. Rxa4 {[%emt 0:00:58]} Bd3 {[%emt 0:00:48]} 33. Ra1 {[%emt 0:01:25]} Qe6 {[%emt 0:06:34]} 34. c4 {[%emt 0:02:04]} a5 35. Rxa5 {[%emt 0:01:57]} Bxc4 {[%emt 0:01:58]} 36. Ra7 {[%emt 0:00:22]} Re8 {[%emt 0:01:05]} 37. Rb7 {[%emt 0:00:38]} Kf7 {[%emt 0:01:38]} 38. Rc7 {[%emt 0:01:53]} Qe4 {[%emt 0:01:57]} 39. Qc5 {[%emt 0:01:12]} g5 {[%emt 0:01:09]} 40. Ra7 {[%emt 0:00:00]} h5 {[%emt 0:00:00]} 41. Bd6 Qe6 42. Qc7 {[%emt 0:13:27]} h4 {[%emt 0:09:03]} 43. Bc5 Bd3 {[%emt 0:01:10]} 44. Kh2 {[%emt 0:07:20]} Bf1 {[%emt 0:05:17]} 45. Kg1 {[%emt 0:04:12]} Bd3 {[%emt 0:02:04]} 46. Kh2 {[%emt 0:00:09]} Qe4 {[%emt 0:05:31]} 47. Qd6 {[%emt 0:03:00]} Qe6 {[%emt 0:05:50]} 48. Qc7 {[%emt 0:00:55]} Bf1 {[%emt 0:00:35]} 49. Kg1 $15 {[%emt 0:00:21]} Bd3 {[%emt 0:00:34]} 1/2-1/2

[Event "2nd Irena Warakomska Memorial-B"]
[Site "Suwalki"]
[Date "2018.08.01"]
[Round "1"]
[White "Furtak, Joanna"]
[Black "Szewczyk, Mariusz"]
[Result "1/2-1/2"]
[ECO "C45"]
[WhiteElo "1899"]
[BlackElo "2094"]
[Annotator "NA RC"]
[PlyCount "158"]
[EventDate "2018.08.01"]
[EventType "swiss"]
[EventCountry "POL"]
[SourceTitle "playchess.com"]
[Source "ChessBase"]
[SourceQuality "1"]
[TimeControl "40/5400+30:1800+30"]

1. e4 {[%emt 0:00:00] Radjabov,T} e5 {[%emt 0:00:00]} 2. Nf3 {[%emt 0:00:00]} Nc6 {[%emt 0:00:00]} 3. d4 {[%emt 0:00:00]} exd4 {[%emt 0:00:00]} 4. Nxd4 {[%emt 0:00:00]} Bc5 {[%emt 0:00:03]} 5. Nb3 {[%emt 0:00:00]} Bb6 {[%emt 0:00:48]} 6. Qe2 {[%emt 0:02:12] C45: Scotch Game} Nge7 {[%emt 0:04:09]} 7. Nc3 {[%emt 0:00:15]} O-O {[%emt 0:01:39]} 8. Be3 {[%emt 0:03:11]} d6 {[%emt 0:03:17]} 9. g3 $146 {[%emt 0:06:37]} ({Predecessor:} 9. O-O-O f5 10. exf5 Bxf5 11. h3 Bd7 12. Qd2 Bxe3 13. Qxe3 Kh8 14. Bd3 Qe8 15. f4 {1-0 (31) Radjabov,T (2784)-Tomashevsky,E (2738) Moscow 2012 CBM 149 [Radjabov,T]}) 9... Ne5 {[%emt 0:05:40]} 10. h3 {[%emt 0:02:57]} Be6 {[%emt 0:05:11]} 11. O-O-O {[%emt 0:02:50]} Bc4 {[%emt 0:00:58]} 12. Qh5 {[%emt 0:01:00]} Bxe3+ {[%emt 0:01:52]} 13. fxe3 {[%emt 0:00:04]} Bxf1 {[%emt 0:01:01]} 14. Rhxf1 {[%emt 0:00:46]} Qe8 {[%emt 0:03:48]} 15. Nd5 {[%emt 0:07:36]} Nxd5 {[%emt 0:00:26]} 16. exd5 {[%emt 0:00:07]} Nc4 {[%emt 0:02:48]} 17. Rfe1 {[%emt 0:01:55]} Qe5 {[%emt 0:03:17]} 18. Qxe5 {[%emt 0:00:14]} Nxe5 {[%emt 0:00:10]} 19. Nd4 {[%emt 0:01:08]} Rae8 {[%emt 0:00:49]} 20. e4 {[%emt 0:13:44]} g6 {[%emt 0:00:55]} 21. g4 {[%emt 0:12:35]} Re7 {[%emt 0:03:48]} 22. Re2 {[%emt 0:02:56]} Rfe8 {[%emt 0:00:36]} 23. Rde1 {[%emt 0:00:54]} h6 {[%emt 0:03:34]} 24. Kd1 {[%emt 0:02:54]} a6 {[%emt 0:01:20]} 25. b3 {[%emt 0:04:00]} Nd7 {[%emt 0:05:24]} 26. Nf3 {[%emt 0:01:36]} Nf6 {[%emt 0:01:13]} 27. Nd2 {[%emt 0:02:40]} Kg7 {[%emt 0:00:14]} 28. c4 {[%emt 0:04:23]} b6 {[%emt 0:02:00]} 29. Re3 {[%emt 0:01:41]} Re5 {[%emt 0:01:23]} 30. Kc2 {[%emt 0:03:12]} h5 {[%emt 0:00:33]} 31. gxh5 {[%emt 0:00:05]} Rxh5 {[%emt 0:00:09]} 32. Rg1 {[%emt 0:05:21]} Rh4 {[%emt 0:03:37]} 33. Kd3 {[%emt 0:01:21]} Nd7 {[%emt 0:00:51]} 34. Ke2 {[%emt 0:11:29]} a5 {[%emt 0:07:04]} 35. Rg4 {[%emt 0:02:11]} Rxg4 {[%emt 0:00:30]} 36. hxg4 {[%emt 0:00:03]} Ne5 {[%emt 0:00:32]} 37. Rg3 {[%emt 0:01:52]} Rh8 {[%emt 0:01:13]} 38. Nf3 {[%emt 0:02:56]} Nxf3 {[%emt 0:00:48]} 39. Kxf3 {[%emt 0:00:15]} Rh1 {[%emt 0:00:28]} 40. g5 {[%emt 0:00:00]} Rb1 {[%emt 0:00:00]} 41. Kf4 {[%emt 0:06:07]} a4 {[%emt 0:05:00]} 42. bxa4 {[%emt 0:03:18]} Rb4 {[%emt 0:01:17]} 43. Ra3 {[%emt 0:01:05]} Rxc4 {[%emt 0:00:10]} 44. a5 {[%emt 0:00:07]} bxa5 {[%emt 0:00:06]} 45. Rxa5 {[%emt 0:00:04]} f5 {[%emt 0:00:17]} 46. gxf6+ {[%emt 0:01:56]} Kxf6 {[%emt 0:00:05]} 47. Ra8 g5+ {[%emt 0:01:52]} 48. Ke3 {[%emt 0:11:30]} Rc3+ {[%emt 0:01:46]} 49. Kd4 {[%emt 0:00:38]} Rc1 {[%emt 0:00:29]} 50. a4 {[%emt 0:02:38]} Kg7 {[%emt 0:06:03]} 51. Ke3 {[%emt 0:03:03]} Rc3+ {[%emt 0:03:18]} 52. Kd2 {[%emt 0:01:23]} Ra3 53. a5 {[%emt 0:04:25]} g4 {[%emt 0:04:05]} 54. Ke2 {[%emt 0:00:05]} Ra2+ {[%emt 0:01:32]} 55. Kf1 {[%emt 0:00:14]} Kf6 {[%emt 0:04:33]} 56. a6 {[%emt 0:01:15]} Ke5 {[%emt 0:00:11]} 57. a7 {[%emt 0:00:06]} Kd4 {[%emt 0:00:16]} 58. Kg1 {[%emt 0:02:48]} Kc5 {[%emt 0:00:19]} 59. Kf1 {[%emt 0:00:57]} g3 {[%emt 0:00:38]} 60. Kg1 {[%emt 0:01:37]} Kb6 {[%emt 0:07:12]} 61. Rg8 {[%emt 0:00:41]} Kxa7 {[%emt 0:00:36]} 62. Rxg3 {[%emt 0:00:05]} Rc2 {[%emt 0:01:16]} 63. Rg2 {[%emt 0:00:18]} Rc4 {[%emt 0:00:46]} 64. Re2 {[%emt 0:00:09]} Kb6 {[%emt 0:00:09]} 65. Kf2 {[%emt 0:00:06]} Kc5 {[%emt 0:00:13]} 66. Ke3 {[%emt 0:02:40]} Rc3+ {[%emt 0:00:21]} 67. Kf4 {[%emt 0:00:28]} Rc1 {[%emt 0:01:56]} 68. Ke3 {[%emt 0:00:49]} Kc4 {[%emt 0:00:22]} 69. Rd2 {[%emt 0:00:47]} Re1+ {[%emt 0:00:26]} 70. Re2 {[%emt 0:00:25]} Rc1 {[%emt 0:03:31]} 71. Rd2 {[%emt 0:00:02]} Rc3+ {[%emt 0:00:35]} 72. Kf4 {[%emt 0:00:09]} Rh3 {[%emt 0:02:10]} 73. Rc2+ {[%emt 0:01:24]} Kd4 {[%emt 0:01:17]} 74. Rxc7 {[%emt 0:00:28]} Rh4+ {[%emt 0:00:11]} 75. Kf3 {[%emt 0:00:08]} Rxe4 $11 {[%emt 0:00:55]} 76. Rc4+ {[%emt 0:00:13]} Kxc4 {[%emt 0:00:06]} 77. Kxe4 {[%emt 0:00:04]} Kc5 {[%emt 0:00:28]} 78. Ke3 {[%emt 0:00:04]} Kxd5 {[%emt 0:00:05]} 79. Kd3 {[%emt 0:00:03]} Ke5 {[%emt 0:00:05]} 1/2-1/2

[Event "2nd Irena Warakomska Memorial-B"]
[Site "Suwalki"]
[Date "2018.08.01"]
[Round "1"]
[White "Dryja, Szymon"]
[Black "Reshetniak, Vitaliy"]
[Result "0-1"]
[ECO "E14"]
[WhiteElo "1878"]
[BlackElo "2085"]
[Annotator "NA"]
[PlyCount "110"]
[EventDate "2018.08.01"]
[EventType "swiss"]
[EventCountry "POL"]
[SourceTitle "playchess.com"]
[Source "ChessBase"]
[SourceQuality "1"]
[TimeControl "40/5400+30:1800+30"]

1. Nf3 {[%emt 0:00:00]} c5 {[%emt 0:00:54]} 2. b3 {[%emt 0:00:00]} e6 {[%emt 0:00:23]} 3. Bb2 {[%emt 0:00:02]} Nf6 {[%emt 0:00:10]} 4. e3 {[%emt 0:00:12]} b6 {[%emt 0:00:19]} 5. d4 {[%emt 0:00:43]} Bb7 {[%emt 0:00:15]} 6. Bd3 {[%emt 0:01:17]} Be7 {[%emt 0:00:43]} 7. O-O {[%emt 0:00:22]} O-O {[%emt 0:00:40]} 8. c4 {[%emt 0:00:25]} cxd4 {[%emt 0:00:14]} 9. Nxd4 {[%emt 0:01:53]} d6 {[%emt 0:00:45]} 10. Nd2 {[%emt 0:01:20]} Nbd7 {[%emt 0:01:04]} 11. Rc1 {[%emt 0:01:19]} Re8 12. Bb1 {[%emt 0:03:14]} a6 {[%emt 0:05:32]} 13. N2f3 {[%emt 0:07:14]} Qc7 {[%emt 0:06:12]} 14. Qe2 {[%emt 0:12:03]} Be4 {[%emt 0:13:21]} 15. Bxe4 {[%emt 0:08:09]} Nxe4 {[%emt 0:00:02]} 16. Nd2 {[%emt 0:00:09]} Nxd2 {[%emt 0:01:25]} 17. Qxd2 {[%emt 0:00:16]} Rac8 {[%emt 0:01:31]} 18. e4 {[%emt 0:02:57]} Qb7 {[%emt 0:00:50]} 19. Qe2 {[%emt 0:01:28]} Nc5 {[%emt 0:06:39]} 20. Rce1 Bf6 {[%emt 0:02:50]} 21. f4 {[%emt 0:08:48]} g6 22. e5 {[%emt 0:10:30]} dxe5 {[%emt 0:02:33]} 23. fxe5 {[%emt 0:00:06]} Bg7 {[%emt 0:00:20]} 24. Nf3 {[%emt 0:03:20]} h6 {[%emt 0:04:13]} 25. Nd2 {[%emt 0:05:12]} Red8 {[%emt 0:05:26]} 26. Rf3 {[%emt 0:04:46]} Rd7 {[%emt 0:00:33]} 27. b4 {[%emt 0:00:49]} Rcd8 {[%emt 0:00:08]} 28. Ne4 {[%emt 0:04:49]} Nd3 {[%emt 0:06:33]} 29. Rxd3 {[%emt 0:07:14]} Rxd3 {[%emt 0:00:09]} 30. Nd6 {[%emt 0:06:47]} R3xd6 {[%emt 0:00:10]} 31. exd6 {[%emt 0:00:08]} Bxb2 {[%emt 0:00:07]} 32. Qxb2 {[%emt 0:00:05]} Rxd6 {[%emt 0:00:07]} 33. Qe5 {[%emt 0:01:10]} Qd7 {[%emt 0:02:01]} 34. h3 Rd2 {[%emt 0:03:54]} 35. Rf1 {[%emt 0:04:26]} Qd4+ {[%emt 0:01:43]} 36. Qxd4 {[%emt 0:00:14]} Rxd4 {[%emt 0:00:01]} 37. Rc1 {[%emt 0:00:08]} Kf8 38. a3 {[%emt 0:04:42]} Rd3 {[%emt 0:00:27]} 39. a4 {[%emt 0:01:10]} Ke7 {[%emt 0:01:49]} 40. c5 {[%emt 0:00:00]} bxc5 {[%emt 0:00:00]} 41. Rxc5 {[%emt 0:01:08]} Rd4 {[%emt 0:01:56]} 42. Rc6 {[%emt 0:01:50]} Rxb4 {[%emt 0:00:06]} 43. Rxa6 {[%emt 0:00:05]} Rb2 {[%emt 0:00:05]} 44. Ra7+ {[%emt 0:00:25]} Kf6 {[%emt 0:00:08]} 45. a5 {[%emt 0:01:20]} Ra2 {[%emt 0:00:13]} 46. a6 {[%emt 0:01:15]} h5 {[%emt 0:00:17]} 47. h4 {[%emt 0:03:07]} e5 {[%emt 0:00:21]} 48. Ra8 Kf5 {[%emt 0:00:44]} 49. a7 {[%emt 0:03:03]} Kf4 {[%emt 0:00:31]} 50. Kh2 {[%emt 0:02:00]} e4 {[%emt 0:00:09]} 51. Kh3 {[%emt 0:00:20]} Ra3+ {[%emt 0:00:34]} 52. Kh2 {[%emt 0:00:16]} Ra1 {[%emt 0:00:29]} 53. Re8 {[%emt 0:03:54]} Rxa7 {[%emt 0:00:08]} 54. Kh3 {[%emt 0:00:10]} Ra5 {[%emt 0:02:39]} 55. Kh2 {[%emt 0:00:16]} e3 {[%emt 0:01:03]} 0-1

[Event "2nd Irena Warakomska Memorial-B"]
[Site "Suwalki"]
[Date "2018.08.01"]
[Round "1"]
[White "Duda, Lukasz"]
[Black "Sukhimski, Vladimir"]
[Result "0-1"]
[ECO "B08"]
[WhiteElo "1874"]
[BlackElo "2083"]
[Annotator "NA RC"]
[PlyCount "106"]
[EventDate "2018.08.01"]
[EventType "swiss"]
[EventCountry "POL"]
[SourceTitle "playchess.com"]
[Source "ChessBase"]
[SourceQuality "1"]
[TimeControl "40/5400+30:1800+30"]

1. e4 {[%emt 0:00:00]} d6 {[%emt 0:02:23]} 2. d4 {[%emt 0:00:24]} Nf6 {[%emt 0:00:08]} 3. Nc3 {[%emt 0:00:07]} g6 {[%emt 0:00:19]} 4. Nf3 {[%emt 0:00:08]} Bg7 {[%emt 0:00:18]} 5. h3 {[%emt 0:00:19]} O-O {[%emt 0:00:13]} 6. Be2 {[%emt 0:00:09]} c6 {[%emt 0:00:21]} 7. a4 {[%emt 0:02:00]} a5 {[%emt 0:00:39]} 8. Be3 {[%emt 0:00:28]} Na6 {[%emt 0:01:03]} 9. O-O {[%emt 0:03:03]} Nb4 10. Qc1 {[%emt 0:15:10]} Re8 {[%emt 0:05:50] B08: Pirc-Ufimzew-Verteidigung} (10... Qc7 11. Bh6 e5 12. dxe5 dxe5 13. Bc4 Re8 14. Bxg7 Kxg7 15. Re1 Be6 16. Bxe6 Rxe6 17. Na2 Nxa2 18. Rxa2 Nd7 19. Ra3 {0-1 (58) Gao,R (2443)-Krasenkow,M (2636) Jakarta 2012}) 11. Bh6 $146 {[%emt 0:03:09]} ({Vorgänger:} 11. Rd1 Qc7 12. Rd2 Bd7 13. Qf1 Rad8 14. Bg5 d5 15. exd5 Nbxd5 16. Bd3 Nb4 17. Bc4 Bf5 18. Qe2 {0-1 (34) Gebigke,M (2106)-Muse,D (2358) Berlin 2016}) 11... e5 {[%emt 0:06:51]} 12. Bxg7 {[%emt 0:00:53]} Kxg7 {[%emt 0:00:14]} 13. dxe5 {[%emt 0:19:57]} dxe5 {[%emt 0:01:26]} 14. Bc4 {[%emt 0:00:57]} Qe7 {[%emt 0:02:17]} 15. Re1 {[%emt 0:31:57]} h6 {[%emt 0:02:54]} 16. Qd2 {[%emt 0:01:19]} Nh5 {[%emt 0:03:57]} 17. Ne2 {[%emt 0:02:54]} Qf6 {[%emt 0:04:16]} 18. Nh2 {[%emt 0:01:18]} Qh4 {[%emt 0:08:04]} 19. Ra3 {[%emt 0:00:55]} Qxe4 {[%emt 0:05:33]} 20. Rc3 {[%emt 0:07:26]} Nd5 {[%emt 0:09:20]} 21. Ng3 {[%emt 0:01:43]} Nxg3 {[%emt 0:02:00]} 22. Rxe4 {[%emt 0:02:01]} Nxe4 {[%emt 0:00:19]} 23. Qe1 {[%emt 0:01:01]} Nexc3 {[%emt 0:02:37]} 24. bxc3 {[%emt 0:00:08]} Bf5 {[%emt 0:01:38]} 25. Bxd5 {[%emt 0:04:00]} cxd5 {[%emt 0:00:30]} 26. Qd2 {[%emt 0:00:24]} Rad8 {[%emt 0:03:23]} 27. h4 {[%emt 0:01:03]} d4 {[%emt 0:03:28]} 28. g4 {[%emt 0:00:32]} Be4 {[%emt 0:01:11]} 29. h5 {[%emt 0:00:32]} dxc3 {[%emt 0:05:19]} 30. Qxc3 {[%emt 0:00:02]} Rd1+ {[%emt 0:00:19]} 31. Nf1 {[%emt 0:00:09]} gxh5 {[%emt 0:05:59]} 32. gxh5 {[%emt 0:00:30]} Kh7 {[%emt 0:05:07]} 33. f3 {[%emt 0:00:27]} Bc6 {[%emt 0:02:08]} 34. Kf2 Rd4 {[%emt 0:02:01]} 35. Ne3 {[%emt 0:01:53]} Rf4 {[%emt 0:02:55]} 36. Qb3 {[%emt 0:00:27]} Bxf3 {[%emt 0:00:52]} 37. Ke1 {[%emt 0:00:31]} Rg8 {[%emt 0:02:12]} 38. Qd3+ {[%emt 0:00:32]} Be4 {[%emt 0:00:38]} 39. Qd7 {[%emt 0:00:22]} Rg1+ {[%emt 0:01:51]} 40. Kd2 {[%emt 0:00:36]} Rf2+ {[%emt 0:00:00]} 41. Kc3 {[%emt 0:00:26]} Rg3 {[%emt 0:01:12]} 42. Kc4 {[%emt 0:04:57]} Rxe3 {[%emt 0:01:03]} 43. Kc5 {[%emt 0:00:41]} Rc3+ {[%emt 0:04:20]} 44. Kb6 {[%emt 0:00:16]} Rf6+ {[%emt 0:00:23]} 45. Ka7 {[%emt 0:00:16]} Bf5 {[%emt 0:01:55]} 46. Qxb7 e4 {[%emt 0:05:44]} 47. Qe7 {[%emt 0:06:32]} Kg7 {[%emt 0:00:16]} 48. Qe5 {[%emt 0:00:17]} Rxc2 {[%emt 0:02:37]} 49. Qxa5 {[%emt 0:01:46]} e3 {[%emt 0:01:24]} 50. Qe5 {[%emt 0:00:47]} e2 {[%emt 0:00:54]} 51. a5 {[%emt 0:01:48]} Bc8 {[%emt 0:04:22]} 52. Kb8 {[%emt 0:06:35]} Ba6 {[%emt 0:00:23]} 53. Ka7 {[%emt 0:02:27]} Rb2 {[%emt 0:02:25]} 0-1

[Event "2nd Irena Warakomska Memorial-B"]
[Site "Suwalki"]
[Date "2018.08.02"]
[Round "2"]
[White "Szewczyk, Mariusz"]
[Black "Shamatava, Nikolozi"]
[Result "0-1"]
[ECO "B42"]
[WhiteElo "2094"]
[BlackElo "1676"]
[Annotator "NA RC"]
[PlyCount "122"]
[EventDate "2018.08.01"]
[EventType "swiss"]
[EventCountry "POL"]
[TimeControl "40/5400+30:1800+30"]

1. e4 c5 2. Nf3 e6 3. d4 cxd4 4. Nxd4 a6 5. Bd3 Bc5 6. Nb3 Ba7 7. O-O Ne7 8. Nc3 O-O 9. e5 Nbc6 10. Bf4 Ng6 11. Bxg6 fxg6 12. Bg3 Rf5 13. Qe2 Nd4 14. Qe4 Nxb3 15. axb3 g5 16. Nd5 Rf7 17. Ne3 Rb8 18. Nc4 Bc5 19. Rad1 b5 20. Nd6 Bxd6 21. Rxd6 Bb7 22. Qe3 h6 23. f4 Qf8 24. Rf2 gxf4 25. Rxf4 Rc8 26. c3 b4 27. Rxf7 Qxf7 28. Qd3 bxc3 29. bxc3 Bc6 30. Qxa6 Rb8 31. Qa3 Qg6 32. Qb2 Bd5 33. c4 Bxc4 34. Rd1 Rxb3 35. Qd4 Bd5 36. Qf2 h5 37. Rc1 Kh7 38. Qc2 Rd3 39. Qe2 Rd4 40. Qc2 Re4 41. Rf1 h4 42. Bf4 Bc6 43. h3 Bb5 44. Rf2 Bc6 45. Qd2 Ra4 46. Be3 $11 Ra1+ 47. Rf1 Ra3 48. Rf2 Bb5 49. Bf4 Rxh3 50. Bg5 Qb1+ 51. Qc1 Qxc1+ 52. Bxc1 Rg3 53. Rf3 Rg4 54. Rf4 Rxf4 55. Bxf4 $11 Kg6 56. Bd2 Kf5 57. Bc3 g5 58. Kf2 g4 59. Ke3 g3 60. Bb4 Bc6 61. Be7 Kg4 0-1